[Event "*** Titled Tuesday 3|2 Blitz"]
[Site "Chess.com"]
[Date "2016.02.02"]
[Round "6"]
[White "amaidel"]
[Black "Alexander_Donchenko"]
[Result "0-1"]
[WhiteElo "2410"]
[BlackElo "2531"]
[TimeControl "180+2"]
[EndTime "12:20:29 PST"]
[Termination "Alexander_Donchenko won by resignation"]

1. e4 {[%clk 0:03:01.9]} 1... c6 {[%clk 0:03:00.7]} 2. d4 {[%clk 0:03:01.3]}
2... d5 {[%clk 0:03:03]} 3. Nd2 {[%clk 0:03:01.6]} 3... dxe4 {[%clk 0:03:03.8]}
4. Nxe4 {[%clk 0:03:03.4]} 4... Bf5 {[%clk 0:03:05.3]} 5. Ng3 {[%clk 0:03:03.8]}
5... Bg6 {[%clk 0:03:06.5]} 6. N1e2 {[%clk 0:03:03.9]} 6... Nf6 {[%clk
0:03:06.1]} 7. Nf4 {[%clk 0:03:03.3]} 7... e5 {[%clk 0:03:06.9]} 8. dxe5 {[%clk
0:03:03.6]} 8... Qa5+ {[%clk 0:03:07.8]} 9. Bd2 {[%clk 0:03:01.7]} 9... Qxe5+
{[%clk 0:03:08.4]} 10. Be2 {[%clk 0:03:02.3]} 10... Nbd7 {[%clk 0:03:07.6]} 11.
O-O {[%clk 0:03:00.1]} 11... Bc5 {[%clk 0:03:05.7]} 12. Nxg6 {[%clk 0:02:57]}
12... hxg6 {[%clk 0:03:06.3]} 13. Bc3 {[%clk 0:02:57.8]} 13... Qc7 {[%clk
0:03:06.1]} 14. Bc4 {[%clk 0:02:53.4]} 14... O-O-O {[%clk 0:02:56.2]} 15. Qf3
{[%clk 0:02:32.6]} 15... Ne5 {[%clk 0:02:41.7]} 16. Bxe5 {[%clk 0:02:32.5]}
16... Qxe5 {[%clk 0:02:43.6]} 17. Bxf7 {[%clk 0:02:27.4]} 17... Qxb2 {[%clk
0:02:03.1]} 18. Bxg6 {[%clk 0:02:26.7]} 18... Qe5 {[%clk 0:01:54.4]} 19. Bf5+
{[%clk 0:02:07.9]} 19... Kb8 {[%clk 0:01:52.6]} 20. Rab1 {[%clk 0:02:02.7]}
20... Ka8 {[%clk 0:01:50.2]} 21. Rfe1 {[%clk 0:01:53.6]} 21... Qc7 {[%clk
0:01:49.5]} 22. Re2 {[%clk 0:01:22]} 22... Rd4 {[%clk 0:01:33.6]} 23. h3 {[%clk
0:01:19]} 23... Rf4 {[%clk 0:01:32.6]} 24. Qb3 {[%clk 0:00:54.5]} 24... Rb4
{[%clk 0:01:22.3]} 25. Qxb4 {[%clk 0:00:51.1]} 25... Bxb4 {[%clk 0:01:23.5]} 26.
Rxb4 {[%clk 0:00:53]} 26... Rd8 {[%clk 0:01:18.9]} 27. Rb1 {[%clk 0:00:53.5]}
27... Qa5 {[%clk 0:01:17.8]} 28. c4 {[%clk 0:00:52.4]} 28... Re8 {[%clk
0:01:13.4]} 29. Reb2 {[%clk 0:00:49.8]} 29... Re1+ {[%clk 0:01:11.5]} 30. Rxe1
{[%clk 0:00:50]} 30... Qxe1+ {[%clk 0:01:13.4]} 31. Kh2 {[%clk 0:00:51.6]} 31...
a6 {[%clk 0:01:02.2]} 32. Bc8 {[%clk 0:00:50.6]} 32... b5 {[%clk 0:01:00]} 33.
cxb5 {[%clk 0:00:50.1]} 33... axb5 {[%clk 0:01:00.7]} 34. Re2 {[%clk 0:00:49.9]}
34... Qa1 {[%clk 0:00:57.2]} 35. Be6 {[%clk 0:00:49.8]} 35... c5 {[%clk
0:00:55.1]} 36. Nf5 {[%clk 0:00:41.7]} 36... g6 {[%clk 0:00:51]} 37. Ne7 {[%clk
0:00:41.9]} 37... Qd1 {[%clk 0:00:51.4]} 38. Re5 {[%clk 0:00:28]} 38... Qd4
{[%clk 0:00:34.1]} 39. Nxg6 {[%clk 0:00:27.6]} 39... Qxf2 {[%clk 0:00:32.5]} 40.
Rf5 {[%clk 0:00:26.9]} 40... Qd4 {[%clk 0:00:30.6]} 41. h4 {[%clk 0:00:26.3]}
41... Ng4+ {[%clk 0:00:25.7]} 42. Kg3 {[%clk 0:00:26.3]} 42... Ne3 {[%clk
0:00:25.9]} 43. Rf3 {[%clk 0:00:25.2]} 43... c4 {[%clk 0:00:22.2]} 44. h5 {[%clk
0:00:25.9]} 44... Qd6+ {[%clk 0:00:20.5]} 45. Nf4 {[%clk 0:00:26.4]} 45... Qe5
{[%clk 0:00:20.8]} 46. h6 {[%clk 0:00:26.3]} 46... Qg5+ {[%clk 0:00:21.6]} 47.
Kh2 {[%clk 0:00:24]} 47... Qxh6+ {[%clk 0:00:22.1]} 48. Bh3 {[%clk 0:00:24.7]}
48... Qd6 {[%clk 0:00:20.8]} 49. Kg1 {[%clk 0:00:22.7]} 49... c3 {[%clk
0:00:19.8]} 50. Rxe3 {[%clk 0:00:22.9]} 50... Qxf4 {[%clk 0:00:19.1]} 51. Re7
{[%clk 0:00:18.3]} 51... c2 {[%clk 0:00:15.5]} 0-1

[Event "*** Titled Tuesday 3|2 Blitz"]
[Site "Chess.com"]
[Date "2016.02.02"]
[Round "6"]
[White "GeorgMeier"]
[Black "BahadirOzen"]
[Result "1-0"]
[WhiteElo "2682"]
[BlackElo "2516"]
[TimeControl "180+2"]
[EndTime "12:20:30 PST"]
[Termination "GeorgMeier won by resignation"]

1. Nf3 {[%clk 0:03:01.9]} 1... g6 {[%clk 0:03:00.6]} 2. d4 {[%clk 0:02:59.2]}
2... Bg7 {[%clk 0:03:01.8]} 3. g3 {[%clk 0:02:59.4]} 3... d6 {[%clk 0:03:03.2]}
4. Bg2 {[%clk 0:03:00.8]} 4... Nd7 {[%clk 0:03:04.4]} 5. O-O {[%clk 0:03:01.3]}
5... e5 {[%clk 0:03:05.6]} 6. dxe5 {[%clk 0:03:02.6]} 6... dxe5 {[%clk
0:03:07.5]} 7. e4 {[%clk 0:03:03.7]} 7... Ngf6 {[%clk 0:03:08.5]} 8. Nbd2 {[%clk
0:03:04.1]} 8... O-O {[%clk 0:03:09.1]} 9. b3 {[%clk 0:03:05.7]} 9... Re8 {[%clk
0:03:09.2]} 10. Bb2 {[%clk 0:03:05]} 10... b6 {[%clk 0:03:09.5]} 11. Re1 {[%clk
0:03:04.3]} 11... Bb7 {[%clk 0:03:10.3]} 12. a4 {[%clk 0:02:57.3]} 12... a5
{[%clk 0:03:03.8]} 13. Qe2 {[%clk 0:02:54.7]} 13... Nc5 {[%clk 0:02:36.8]} 14.
Rad1 {[%clk 0:02:43.5]} 14... Nfd7 {[%clk 0:02:24.3]} 15. h4 {[%clk 0:02:30.7]}
15... Qe7 {[%clk 0:02:21.4]} 16. h5 {[%clk 0:02:04.4]} 16... Rad8 {[%clk
0:02:21.5]} 17. Qe3 {[%clk 0:01:52.7]} 17... Nf6 {[%clk 0:02:05.6]} 18. hxg6
{[%clk 0:01:47.4]} 18... hxg6 {[%clk 0:02:07.5]} 19. Ba3 {[%clk 0:01:48.6]}
19... Ng4 {[%clk 0:02:00.6]} 20. Qe2 {[%clk 0:01:43]} 20... Nf6 {[%clk
0:01:24.1]} 21. Bh3 {[%clk 0:01:29]} 21... Bh6 {[%clk 0:01:15.8]} 22. Qc4 {[%clk
0:01:27.2]} 22... Nfd7 {[%clk 0:01:05.4]} 23. Kg2 {[%clk 0:01:21.5]} 23... Qf6
{[%clk 0:00:50.5]} 24. Bb2 {[%clk 0:01:01.1]} 24... Ba6 {[%clk 0:00:46]} 25. Qc3
{[%clk 0:01:01.4]} 25... Bb7 {[%clk 0:00:47.3]} 26. Bg4 {[%clk 0:01:01]} 26...
Nf8 {[%clk 0:00:44.7]} 27. Qc4 {[%clk 0:00:53.5]} 27... Ba6 {[%clk 0:00:38.6]}
28. Qc3 {[%clk 0:00:54.6]} 28... Bb7 {[%clk 0:00:40.2]} 29. Ba1 {[%clk
0:00:50.2]} 29... Bg7 {[%clk 0:00:28.2]} 30. Qe3 {[%clk 0:00:47.3]} 30... Re6
{[%clk 0:00:27.5]} 31. Bxe6 {[%clk 0:00:46.6]} 31... Qxe6 {[%clk 0:00:22.2]} 32.
Rh1 {[%clk 0:00:42.7]} 32... Nfd7 {[%clk 0:00:20.1]} 33. Ng5 {[%clk 0:00:39.9]}
33... Qf6 {[%clk 0:00:19.1]} 34. f3 {[%clk 0:00:39.2]} 34... Nf8 {[%clk
0:00:13.5]} 35. Bc3 {[%clk 0:00:36.7]} 35... Nfe6 {[%clk 0:00:13.9]} 36. Nxe6
{[%clk 0:00:37]} 36... Nxe6 {[%clk 0:00:15.8]} 37. Nc4 {[%clk 0:00:36.2]} 37...
Nd4 {[%clk 0:00:16.4]} 38. Bxd4 {[%clk 0:00:33.8]} 38... exd4 {[%clk 0:00:18.3]}
39. Qf4 {[%clk 0:00:35]} 39... Qe7 {[%clk 0:00:20]} 40. Qh4 {[%clk 0:00:30.3]}
40... Bf6 {[%clk 0:00:16.6]} 41. Qh7+ {[%clk 0:00:20.5]} 41... Kf8 {[%clk
0:00:18.1]} 42. Qh6+ {[%clk 0:00:17.8]} 42... Bg7 {[%clk 0:00:18.7]} 43. Qf4
{[%clk 0:00:18.1]} 43... Ba6 {[%clk 0:00:19.8]} 44. Rhe1 {[%clk 0:00:16.4]}
44... Kg8 {[%clk 0:00:19.3]} 45. e5 {[%clk 0:00:16.2]} 45... c5 {[%clk
0:00:19.6]} 46. e6 {[%clk 0:00:15.6]} 46... fxe6 {[%clk 0:00:18.9]} 47. Qg4
{[%clk 0:00:16.7]} 47... e5 {[%clk 0:00:18.2]} 48. Qxg6 {[%clk 0:00:17.4]} 48...
Bb7 {[%clk 0:00:19.4]} 49. Nd2 {[%clk 0:00:15.9]} 49... Rf8 {[%clk 0:00:18.2]}
50. Ne4 {[%clk 0:00:16.4]} 50... Qf7 {[%clk 0:00:14.8]} 51. Qxf7+ {[%clk
0:00:17.2]} 51... Kxf7 {[%clk 0:00:16.5]} 52. Nd6+ {[%clk 0:00:17.8]} 52... Ke6
{[%clk 0:00:15.8]} 53. Nxb7 {[%clk 0:00:18.8]} 53... Rf7 {[%clk 0:00:14.7]} 54.
Nd8+ {[%clk 0:00:19.5]} 1-0

[Event "*** Titled Tuesday 3|2 Blitz"]
[Site "Chess.com"]
[Date "2016.02.02"]
[Round "6"]
[White "GMVar"]
[Black "lorcho"]
[Result "0-1"]
[WhiteElo "2702"]
[BlackElo "2659"]
[TimeControl "180+2"]
[EndTime "12:20:48 PST"]
[Termination "lorcho won on time"]

1. d4 {[%clk 0:03:01.9]} 1... e6 {[%clk 0:02:58.1]} 2. c4 {[%clk 0:02:48.7]}
2... d5 {[%clk 0:02:58.9]} 3. Nf3 {[%clk 0:02:46.3]} 3... c5 {[%clk 0:03:00.3]}
4. cxd5 {[%clk 0:02:43.7]} 4... exd5 {[%clk 0:03:01.5]} 5. Nc3 {[%clk
0:02:43.2]} 5... Nc6 {[%clk 0:03:02.9]} 6. g3 {[%clk 0:02:40.8]} 6... Nf6 {[%clk
0:03:03.9]} 7. Bg2 {[%clk 0:02:40.2]} 7... Be7 {[%clk 0:03:05.1]} 8. O-O {[%clk
0:02:37.6]} 8... O-O {[%clk 0:03:05.5]} 9. Bg5 {[%clk 0:02:33.1]} 9... cxd4
{[%clk 0:03:05.7]} 10. Nxd4 {[%clk 0:02:31.7]} 10... h6 {[%clk 0:03:07.2]} 11.
Be3 {[%clk 0:02:30.1]} 11... Bg4 {[%clk 0:03:07.8]} 12. Rc1 {[%clk 0:02:27.3]}
12... Qd7 {[%clk 0:03:07.6]} 13. Qb3 {[%clk 0:02:25.2]} 13... Rad8 {[%clk
0:03:05.3]} 14. Rfd1 {[%clk 0:02:23.1]} 14... Na5 {[%clk 0:02:56.5]} 15. Qc2
{[%clk 0:02:18.9]} 15... Nc4 {[%clk 0:02:56.1]} 16. Bf4 {[%clk 0:02:19.4]} 16...
Nb6 {[%clk 0:02:55.4]} 17. Ndb5 {[%clk 0:02:16.3]} 17... Bc5 {[%clk 0:02:39.1]}
18. Nc7 {[%clk 0:02:02.1]} 18... Bf5 {[%clk 0:02:30.2]} 19. e4 {[%clk
0:01:55.8]} 19... Bg4 {[%clk 0:02:31.3]} 20. Rd2 {[%clk 0:01:53.3]} 20... Bd6
{[%clk 0:02:20.6]} 21. Bxd6 {[%clk 0:01:50.8]} 21... Qxd6 {[%clk 0:02:22.5]} 22.
N3xd5 {[%clk 0:01:48.3]} 22... Nbxd5 {[%clk 0:02:18.5]} 23. exd5 {[%clk
0:01:44.1]} 23... Rc8 {[%clk 0:02:14.5]} 24. Rd4 {[%clk 0:01:44.1]} 24... Rfd8
{[%clk 0:02:11.4]} 25. Rc4 {[%clk 0:01:42.7]} 25... Rd7 {[%clk 0:02:05.3]} 26.
h3 {[%clk 0:01:38.3]} 26... Be2 {[%clk 0:01:54.3]} 27. Qxe2 {[%clk 0:01:30.6]}
27... Rdxc7 {[%clk 0:01:53.8]} 28. Bf3 {[%clk 0:01:23.4]} 28... Kf8 {[%clk
0:01:46.9]} 29. Kg2 {[%clk 0:01:21.6]} 29... Ne8 {[%clk 0:01:44.4]} 30. a3
{[%clk 0:01:20.3]} 30... Rxc4 {[%clk 0:01:40.4]} 31. Rxc4 {[%clk 0:01:20]} 31...
Rxc4 {[%clk 0:01:40.2]} 32. Qxc4 {[%clk 0:01:20.6]} 32... Qe7 {[%clk 0:01:36.5]}
33. Qc8 {[%clk 0:01:15.6]} 33... b6 {[%clk 0:01:37.6]} 34. Qa8 {[%clk
0:01:12.2]} 34... g6 {[%clk 0:01:34.4]} 35. d6 {[%clk 0:01:07]} 35... Qxd6
{[%clk 0:01:32.8]} 36. Qxa7 {[%clk 0:01:08.1]} 36... Nc7 {[%clk 0:01:27.1]} 37.
Qb8+ {[%clk 0:01:05.8]} 37... Kg7 {[%clk 0:01:28]} 38. a4 {[%clk 0:01:02.7]}
38... h5 {[%clk 0:01:13.3]} 39. b4 {[%clk 0:00:58.6]} 39... h4 {[%clk
0:01:11.2]} 40. gxh4 {[%clk 0:00:58.7]} 40... Qe5 {[%clk 0:01:08.3]} 41. Bc6
{[%clk 0:00:46.9]} 41... Qd6 {[%clk 0:01:02.3]} 42. Qxb6 {[%clk 0:00:43.1]}
42... Ne6 {[%clk 0:01:01.5]} 43. a5 {[%clk 0:00:41.8]} 43... Nf4+ {[%clk
0:00:59.4]} 44. Kf3 {[%clk 0:00:40.3]} 44... Nxh3 {[%clk 0:00:56.1]} 45. Qc5
{[%clk 0:00:37]} 45... Qf4+ {[%clk 0:00:51.1]} 46. Ke2 {[%clk 0:00:34.3]} 46...
Qxh4 {[%clk 0:00:50]} 47. a6 {[%clk 0:00:32.4]} 47... Nf4+ {[%clk 0:00:50.2]}
48. Ke3 {[%clk 0:00:30.6]} 48... Ne6 {[%clk 0:00:47.4]} 49. Qe5+ {[%clk
0:00:28.9]} 49... Kh7 {[%clk 0:00:46.3]} 50. a7 {[%clk 0:00:23.5]} 50... Qxb4
{[%clk 0:00:41.9]} 51. Qh2+ {[%clk 0:00:11.3]} 51... Kg7 {[%clk 0:00:42]} 52.
a8=Q {[%clk 0:00:12.2]} 52... Qc3+ {[%clk 0:00:39.6]} 53. Ke4 {[%clk 0:00:09.8]}
53... Ng5+ {[%clk 0:00:33.3]} 54. Kf4 {[%clk 0:00:06.7]} 54... Ne6+ {[%clk
0:00:34.5]} 55. Ke4 {[%clk 0:00:04.6]} 55... Ng5+ {[%clk 0:00:34.8]} 56. Kf4
{[%clk 0:00:05.7]} 56... Ne6+ {[%clk 0:00:35.8]} 57. Kg4 {[%clk 0:00:06.8]}
57... f5+ {[%clk 0:00:36]} 58. Kh4 {[%clk 0:00:07.7]} 58... Qd4+ {[%clk
0:00:24.8]} 59. f4 {[%clk 0:00:04.8]} 59... g5+ {[%clk 0:00:24.9]} 0-1

[Event "*** Titled Tuesday 3|2 Blitz"]
[Site "Chess.com"]
[Date "2016.02.02"]
[Round "6"]
[White "AndroQueen"]
[Black "jcibarra"]
[Result "0-1"]
[WhiteElo "2407"]
[BlackElo "2532"]
[TimeControl "180+2"]
[EndTime "12:20:57 PST"]
[Termination "jcibarra won by checkmate"]

1. d4 {[%clk 0:03:01.9]} 1... Nf6 {[%clk 0:03:00.7]} 2. c4 {[%clk 0:03:03]} 2...
d6 {[%clk 0:03:01.9]} 3. Nc3 {[%clk 0:03:01.1]} 3... Bf5 {[%clk 0:03:02.4]} 4.
g3 {[%clk 0:03:00]} 4... c6 {[%clk 0:03:02.5]} 5. Bg2 {[%clk 0:03:00.2]} 5...
Nbd7 {[%clk 0:03:04]} 6. e4 {[%clk 0:02:59.8]} 6... Bg6 {[%clk 0:03:05.5]} 7.
Nge2 {[%clk 0:02:58.4]} 7... e5 {[%clk 0:03:06.8]} 8. O-O {[%clk 0:02:59.1]}
8... Be7 {[%clk 0:03:08.1]} 9. h3 {[%clk 0:02:57]} 9... O-O {[%clk 0:03:08.4]}
10. Be3 {[%clk 0:02:57.6]} 10... a6 {[%clk 0:03:07.5]} 11. f4 {[%clk 0:02:45.6]}
11... h6 {[%clk 0:03:08.3]} 12. d5 {[%clk 0:02:36.1]} 12... cxd5 {[%clk
0:03:07.5]} 13. cxd5 {[%clk 0:02:35.7]} 13... b5 {[%clk 0:03:08.1]} 14. a3
{[%clk 0:02:35]} 14... Rc8 {[%clk 0:03:06]} 15. Rc1 {[%clk 0:02:21]} 15... Re8
{[%clk 0:03:05.3]} 16. b4 {[%clk 0:02:06]} 16... Nb6 {[%clk 0:02:57.4]} 17. f5
{[%clk 0:01:34.1]} 17... Nc4 {[%clk 0:02:49.5]} 18. Bf2 {[%clk 0:01:33]} 18...
Bh7 {[%clk 0:02:49.3]} 19. a4 {[%clk 0:01:32.4]} 19... Qd7 {[%clk 0:02:41.9]}
20. axb5 {[%clk 0:01:30.4]} 20... axb5 {[%clk 0:02:43.8]} 21. Qd3 {[%clk
0:01:30.1]} 21... Bd8 {[%clk 0:02:29.9]} 22. Ra1 {[%clk 0:01:28.6]} 22... Qb7
{[%clk 0:02:01.7]} 23. Ra7 {[%clk 0:01:27.6]} 23... Qb8 {[%clk 0:02:02.7]} 24.
Rfa1 {[%clk 0:01:14.2]} 24... Bb6 {[%clk 0:02:03.3]} 25. Bxb6 {[%clk 0:01:15.1]}
25... Qxb6+ {[%clk 0:02:03.6]} 26. Kh2 {[%clk 0:01:16.3]} 26... g6 {[%clk
0:01:37.7]} 27. g4 {[%clk 0:00:48.5]} 27... gxf5 {[%clk 0:01:38.2]} 28. gxf5
{[%clk 0:00:49.9]} 28... Rf8 {[%clk 0:01:17.7]} 29. R1a6 {[%clk 0:00:42.6]}
29... Qb8 {[%clk 0:01:18.6]} 30. Qg3+ {[%clk 0:00:39.5]} 30... Kh8 {[%clk
0:01:19.7]} 31. Qh4 {[%clk 0:00:40.8]} 31... Ng8 {[%clk 0:01:17]} 32. Rd7 {[%clk
0:00:30.7]} 32... Rc7 {[%clk 0:01:16]} 33. Rxc7 {[%clk 0:00:28.4]} 33... Qxc7
{[%clk 0:01:17.9]} 34. Ra1 {[%clk 0:00:16.8]} 34... Qb6 {[%clk 0:01:17.4]} 35.
Rg1 {[%clk 0:00:11.8]} 35... Ra8 {[%clk 0:01:11.3]} 36. Qg3 {[%clk 0:00:12.5]}
36... Nf6 {[%clk 0:01:07.4]} 37. Qh4 {[%clk 0:00:13.1]} 37... Ng8 {[%clk
0:01:02.4]} 38. Qg3 {[%clk 0:00:13.9]} 38... f6 {[%clk 0:00:43.1]} 39. Bf3
{[%clk 0:00:14.3]} 39... Ra7 {[%clk 0:00:44.6]} 40. Bh5 {[%clk 0:00:09.2]} 40...
Rb7 {[%clk 0:00:44.8]} 41. Bg6 {[%clk 0:00:09.6]} 41... Rg7 {[%clk 0:00:45.2]}
42. Ra1 {[%clk 0:00:05.9]} 42... Ne7 {[%clk 0:00:37.8]} 43. Ra8+ {[%clk
0:00:03.8]} 43... Bg8 {[%clk 0:00:37.3]} 44. Re8 {[%clk 0:00:04.6]} 44... Nxg6
{[%clk 0:00:36.3]} 45. fxg6 {[%clk 0:00:06.5]} 45... Ne3 {[%clk 0:00:35]} 46.
Kh1 {[%clk 0:00:04]} 46... f5 {[%clk 0:00:34.8]} 47. exf5 {[%clk 0:00:03.3]}
47... Nxf5 {[%clk 0:00:35.5]} 48. Qf3 {[%clk 0:00:05]} 48... Nd4 {[%clk
0:00:26.4]} 49. Qf6 {[%clk 0:00:05.9]} 49... Qc7 {[%clk 0:00:18.6]} 50. Nxd4
{[%clk 0:00:04.2]} 50... exd4 {[%clk 0:00:17.5]} 51. Qxd4 {[%clk 0:00:05]} 51...
Qd7 {[%clk 0:00:18.9]} 52. Re3 {[%clk 0:00:05.1]} 52... Qf5 {[%clk 0:00:18.9]}
53. Ne2 {[%clk 0:00:06]} 53... Bxd5+ {[%clk 0:00:18.5]} 54. Kg1 {[%clk 0:00:03]}
54... Qxg6+ {[%clk 0:00:13.9]} 55. Rg3 {[%clk 0:00:04.2]} 55... Qb1+ {[%clk
0:00:12.1]} 56. Kh2 {[%clk 0:00:05.3]} 56... Qh1# {[%clk 0:00:12.4]} 0-1

[Event "*** Titled Tuesday 3|2 Blitz"]
[Site "Chess.com"]
[Date "2016.02.02"]
[Round "6"]
[White "lionheart95"]
[Black "swayamsm"]
[Result "1-0"]
[WhiteElo "2267"]
[BlackElo "2530"]
[TimeControl "180+2"]
[EndTime "12:21:04 PST"]
[Termination "lionheart95 won by checkmate"]

1. e4 {[%clk 0:03:01.9]} 1... e6 {[%clk 0:03:01.9]} 2. d4 {[%clk 0:03:01.7]}
2... d5 {[%clk 0:02:56.6]} 3. Bd3 {[%clk 0:03:02.2]} 3... Nf6 {[%clk 0:02:56.8]}
4. e5 {[%clk 0:03:02.5]} 4... Nfd7 {[%clk 0:02:57.5]} 5. f4 {[%clk 0:03:03.8]}
5... c5 {[%clk 0:02:59.2]} 6. c3 {[%clk 0:03:04.5]} 6... Nc6 {[%clk 0:03:00.8]}
7. Nf3 {[%clk 0:03:04.4]} 7... Be7 {[%clk 0:03:02.4]} 8. Be3 {[%clk 0:03:01.6]}
8... a6 {[%clk 0:03:02.7]} 9. O-O {[%clk 0:03:00.9]} 9... b5 {[%clk 0:03:04]}
10. Nbd2 {[%clk 0:03:00]} 10... Qb6 {[%clk 0:03:05.5]} 11. Rc1 {[%clk 0:02:56]}
11... Bb7 {[%clk 0:03:05.5]} 12. f5 {[%clk 0:02:52.8]} 12... cxd4 {[%clk
0:03:05.5]} 13. cxd4 {[%clk 0:02:48.8]} 13... Ndxe5 {[%clk 0:03:00.6]} 14. Nxe5
{[%clk 0:02:25.5]} 14... Nxe5 {[%clk 0:03:01.1]} 15. Bb1 {[%clk 0:02:26.5]}
15... Nc4 {[%clk 0:02:54.8]} 16. Nxc4 {[%clk 0:02:20.3]} 16... dxc4 {[%clk
0:02:47.2]} 17. fxe6 {[%clk 0:02:18.4]} 17... Qxe6 {[%clk 0:02:48.7]} 18. Re1
{[%clk 0:02:15.7]} 18... Qd5 {[%clk 0:02:49.5]} 19. Qg4 {[%clk 0:02:09.1]} 19...
O-O {[%clk 0:02:32.5]} 20. Bf2 {[%clk 0:02:08.4]} 20... h5 {[%clk 0:02:24.5]}
21. Qh3 {[%clk 0:01:58.3]} 21... Qg5 {[%clk 0:01:36.8]} 22. Rc3 {[%clk
0:01:35.3]} 22... Bd6 {[%clk 0:01:29.8]} 23. Rce3 {[%clk 0:01:22.5]} 23... Rad8
{[%clk 0:01:04.6]} 24. Bh4 {[%clk 0:01:19.2]} 24... Qf4 {[%clk 0:00:36.3]} 25.
Bxd8 {[%clk 0:01:17.2]} 25... Qxd4 {[%clk 0:00:37.6]} 26. Qxh5 {[%clk
0:01:03.4]} 26... g6 {[%clk 0:00:33.4]} 27. Qh4 {[%clk 0:01:03]} 27... Bf4
{[%clk 0:00:31.4]} 28. Bg5 {[%clk 0:00:10.9]} 28... Bxe3+ {[%clk 0:00:27.2]} 29.
Rxe3 {[%clk 0:00:12.8]} 29... Qxb2 {[%clk 0:00:17.2]} 30. Be4 {[%clk 0:00:07.8]}
30... Qa1+ {[%clk 0:00:12.7]} 31. Kf2 {[%clk 0:00:07.7]} 31... Qb2+ {[%clk
0:00:13.2]} 32. Kf3 {[%clk 0:00:07.6]} 32... Bxe4+ {[%clk 0:00:13.7]} 33. Qxe4
{[%clk 0:00:09.1]} 33... Qa1 {[%clk 0:00:12.4]} 34. Qf4 {[%clk 0:00:08.8]} 34...
Qf1+ {[%clk 0:00:13.3]} 35. Kg3 {[%clk 0:00:09.9]} 35... Qd1 {[%clk 0:00:13.6]}
36. Bf6 {[%clk 0:00:10]} 36... Qh5 {[%clk 0:00:14.4]} 37. Qh4 {[%clk 0:00:10.9]}
37... Rc8 {[%clk 0:00:14.1]} 38. Qxh5 {[%clk 0:00:11.6]} 38... gxh5 {[%clk
0:00:16]} 39. Kf4 {[%clk 0:00:12.7]} 39... Kf8 {[%clk 0:00:15.5]} 40. Rh3 {[%clk
0:00:12.9]} 40... Rc6 {[%clk 0:00:15.8]} 41. Bc3 {[%clk 0:00:12.2]} 41... Ke7
{[%clk 0:00:16]} 42. Rxh5 {[%clk 0:00:13]} 42... Re6 {[%clk 0:00:14.3]} 43. Re5
{[%clk 0:00:13.6]} 43... Kd6 {[%clk 0:00:13.9]} 44. Rxe6+ {[%clk 0:00:14.4]}
44... fxe6 {[%clk 0:00:15.8]} 45. h4 {[%clk 0:00:15.8]} 45... Kc5 {[%clk
0:00:17.4]} 46. Ke3 {[%clk 0:00:16.5]} 46... b4 {[%clk 0:00:18.9]} 47. Bf6
{[%clk 0:00:17.1]} 47... c3 {[%clk 0:00:18.5]} 48. Kd3 {[%clk 0:00:17.6]} 48...
a5 {[%clk 0:00:17]} 49. h5 {[%clk 0:00:18.5]} 49... a4 {[%clk 0:00:18.6]} 50. h6
{[%clk 0:00:17.1]} 50... b3 {[%clk 0:00:17.9]} 51. Bxc3 {[%clk 0:00:16.7]} 51...
bxa2 {[%clk 0:00:18.7]} 52. h7 {[%clk 0:00:14.5]} 52... a1=Q {[%clk 0:00:20]}
53. Bxa1 {[%clk 0:00:13.3]} 53... e5 {[%clk 0:00:21.6]} 54. h8=Q {[%clk
0:00:14.4]} 54... e4+ {[%clk 0:00:23.5]} 55. Kxe4 {[%clk 0:00:13.9]} 55... Kb4
{[%clk 0:00:25.4]} 56. Qc3+ {[%clk 0:00:14.4]} 56... Kb5 {[%clk 0:00:26.9]} 57.
Kd5 {[%clk 0:00:15.5]} 57... a3 {[%clk 0:00:28.8]} 58. Qc4+ {[%clk 0:00:15]}
58... Ka5 {[%clk 0:00:30.1]} 59. Bc3+ {[%clk 0:00:15.3]} 59... Kb6 {[%clk
0:00:32]} 60. Bd4+ {[%clk 0:00:16.1]} 60... Kb7 {[%clk 0:00:33.1]} 61. Qb5+
{[%clk 0:00:15.7]} 61... Kc7 {[%clk 0:00:34.3]} 62. Be5+ {[%clk 0:00:16.2]}
62... Kd8 {[%clk 0:00:35.7]} 63. Kd6 {[%clk 0:00:16.7]} 63... Kc8 {[%clk
0:00:35.3]} 64. Qa6+ {[%clk 0:00:16.1]} 64... Kb8 {[%clk 0:00:36.5]} 65. Kd7#
{[%clk 0:00:17.1]} 1-0